[Event "*** Titled Tuesday Blitz"]
[Site "Chess.com"]
[Date "2018.04.03"]
[Round "1"]
[White "anon102030"]
[Black "RojonR"]
[Result "1-0"]
[WhiteElo "2732"]
[BlackElo "2380"]
[TimeControl "180+2"]
[EndTime "13:10:23 PDT"]
[Termination "anon102030 won by resignation"]

1. e4 {[%clk 0:03:00]} 1... c5 {[%clk 0:03:00.7]} 2. Nc3 {[%clk 0:03:00]} 2...
Nc6 {[%clk 0:03:01.2]} 3. g3 {[%clk 0:03:01.9]} 3... g6 {[%clk 0:03:00.9]} 4.
Bg2 {[%clk 0:03:03.8]} 4... Bg7 {[%clk 0:03:00.8]} 5. d3 {[%clk 0:03:05.7]} 5...
d6 {[%clk 0:03:00.7]} 6. Be3 {[%clk 0:03:06.8]} 6... Nf6 {[%clk 0:02:57]} 7. h3
{[%clk 0:03:07.9]} 7... O-O {[%clk 0:02:57]} 8. f4 {[%clk 0:03:08]} 8... Rb8
{[%clk 0:02:55.3]} 9. Qd2 {[%clk 0:03:07.4]} 9... Nd4 {[%clk 0:02:50.5]} 10. Nf3
{[%clk 0:03:01.2]} 10... Nxf3+ {[%clk 0:02:50.2]} 11. Bxf3 {[%clk 0:03:03.1]}
11... b5 {[%clk 0:02:50.5]} 12. a3 {[%clk 0:02:54]} 12... a5 {[%clk 0:02:47.9]}
13. g4 {[%clk 0:02:51.4]} 13... b4 {[%clk 0:02:41.8]} 14. axb4 {[%clk
0:02:53.3]} 14... axb4 {[%clk 0:02:42.4]} 15. Ne2 {[%clk 0:02:48.8]} 15... Bb7
{[%clk 0:02:32.7]} 16. O-O {[%clk 0:02:47.9]} 16... Qc7 {[%clk 0:02:25.2]} 17.
Bg2 {[%clk 0:02:24.2]} 17... Ra8 {[%clk 0:02:21.6]} 18. Ng3 {[%clk 0:02:20.4]}
18... d5 {[%clk 0:01:43.5]} 19. e5 {[%clk 0:02:13.4]} 19... Nd7 {[%clk
0:01:44.1]} 20. d4 {[%clk 0:02:12.8]} 20... cxd4 {[%clk 0:00:59.6]} 21. Bxd4
{[%clk 0:02:14.7]} 21... Ba6 {[%clk 0:00:57.8]} 22. Rfe1 {[%clk 0:01:59.2]}
22... Qb7 {[%clk 0:00:52.4]} 23. e6 {[%clk 0:01:51.7]} 23... Bxd4+ {[%clk
0:00:42.2]} 24. Qxd4 {[%clk 0:01:34.4]} 24... Qb6 {[%clk 0:00:42.3]} 25. Rad1
{[%clk 0:01:16.7]} 25... Qxd4+ {[%clk 0:00:20.4]} 26. Rxd4 {[%clk 0:01:18.6]}
26... fxe6 {[%clk 0:00:19.1]} 27. Rxe6 {[%clk 0:01:20.5]} 27... Nf6 {[%clk
0:00:18.3]} 28. Rxe7 {[%clk 0:01:19.9]} 28... Rfe8 {[%clk 0:00:13.8]} 29. Rxe8+
{[%clk 0:01:19]} 29... Rxe8 {[%clk 0:00:15.1]} 30. Bxd5+ {[%clk 0:01:20.7]}
30... Nxd5 {[%clk 0:00:16.2]} 31. Rxd5 {[%clk 0:01:22.6]} 31... Re1+ {[%clk
0:00:17.1]} 32. Kf2 {[%clk 0:01:23.6]} 32... Rc1 {[%clk 0:00:17.9]} 33. Rc5
{[%clk 0:01:22.8]} 33... b3 {[%clk 0:00:18.2]} 34. c3 {[%clk 0:00:57.5]} 34...
Rc2+ {[%clk 0:00:18.6]} 35. Ke3 {[%clk 0:00:59]} 35... Rxb2 {[%clk 0:00:19.3]}
36. Rc6 {[%clk 0:00:54.5]} 36... Ra2 {[%clk 0:00:19.6]} 37. Rb6 {[%clk
0:00:53.9]} 37... Bc4 {[%clk 0:00:20]} 38. Ne4 {[%clk 0:00:55.8]} 38... Rh2
{[%clk 0:00:15.1]} 39. Rb8+ {[%clk 0:00:56]} 39... Kg7 {[%clk 0:00:15.9]} 40.
Kd4 {[%clk 0:00:55.4]} 40... Bf7 {[%clk 0:00:15.5]} 41. Rb7 {[%clk 0:00:53.2]}
41... Kf8 {[%clk 0:00:16.1]} 42. Rb8+ {[%clk 0:00:52.6]} 42... Kg7 {[%clk
0:00:16.6]} 43. Ng5 {[%clk 0:00:54.5]} 43... h6 {[%clk 0:00:13.9]} 44. Nxf7
{[%clk 0:00:52.7]} 44... Kxf7 {[%clk 0:00:15.5]} 45. Rxb3 {[%clk 0:00:53.7]}
45... Rxh3 {[%clk 0:00:17.1]} 46. Ke5 {[%clk 0:00:53.3]} 46... h5 {[%clk
0:00:17.4]} 47. Rb7+ {[%clk 0:00:53.8]} 47... Ke8 {[%clk 0:00:17.6]} 48. gxh5
{[%clk 0:00:53.5]} 48... gxh5 {[%clk 0:00:16.3]} 49. c4 {[%clk 0:00:51.9]} 49...
Rc3 {[%clk 0:00:17.2]} 50. Kd4 {[%clk 0:00:33.7]} 50... Rf3 {[%clk 0:00:17.5]}
51. Ke4 {[%clk 0:00:34.6]} 51... Rc3 {[%clk 0:00:18.5]} 52. Kd4 {[%clk
0:00:18.5]} 52... Rf3 {[%clk 0:00:18.8]} 53. Ke5 {[%clk 0:00:20]} 53... Rc3
{[%clk 0:00:18]} 54. Rc7 {[%clk 0:00:17.6]} 54... h4 {[%clk 0:00:18.6]} 55. Rh7
{[%clk 0:00:15.6]} 55... Rxc4 {[%clk 0:00:18.9]} 56. Rxh4 {[%clk 0:00:16.2]}
56... Rc5+ {[%clk 0:00:19.9]} 57. Kd6 {[%clk 0:00:17]} 57... Rf5 {[%clk
0:00:19.2]} 58. Ke6 {[%clk 0:00:18.1]} 58... Rf8 {[%clk 0:00:18.6]} 59. f5
{[%clk 0:00:16]} 59... Rg8 {[%clk 0:00:15.9]} 60. Ra4 {[%clk 0:00:16.7]} 60...
Kf8 {[%clk 0:00:06.5]} 61. Ra8+ {[%clk 0:00:17.5]} 61... Kg7 {[%clk 0:00:08.1]}
62. Rxg8+ {[%clk 0:00:19.4]} 62... Kxg8 {[%clk 0:00:10]} 63. Ke7 {[%clk
0:00:21.2]} 1-0

[Event "*** Titled Tuesday Blitz"]
[Site "Chess.com"]
[Date "2018.04.03"]
[Round "1"]
[White "ajkom197"]
[Black "RichardABates"]
[Result "1/2-1/2"]
[WhiteElo "2431"]
[BlackElo "2018"]
[TimeControl "180+2"]
[EndTime "13:10:35 PDT"]
[Termination "Game drawn - insufficient material"]

1. d4 {[%clk 0:03:01.9]} 1... Nf6 {[%clk 0:02:59.9]} 2. Bf4 {[%clk 0:03:03.3]}
2... d6 {[%clk 0:02:59.5]} 3. Nf3 {[%clk 0:03:03.8]} 3... Bg4 {[%clk 0:02:58.6]}
4. e3 {[%clk 0:03:04.8]} 4... Nbd7 {[%clk 0:02:58.4]} 5. Be2 {[%clk 0:03:03.5]}
5... g6 {[%clk 0:02:58.7]} 6. h3 {[%clk 0:03:04.3]} 6... Bxf3 {[%clk 0:02:58]}
7. Bxf3 {[%clk 0:03:06.2]} 7... c6 {[%clk 0:02:58.5]} 8. c4 {[%clk 0:03:05.3]}
8... Bg7 {[%clk 0:02:59]} 9. O-O {[%clk 0:03:05.7]} 9... O-O {[%clk 0:02:59.6]}
10. Nc3 {[%clk 0:03:06.4]} 10... e5 {[%clk 0:02:59.2]} 11. Bh2 {[%clk
0:03:07.4]} 11... Qe7 {[%clk 0:02:58.2]} 12. Re1 {[%clk 0:03:08]} 12... e4
{[%clk 0:02:51.4]} 13. Be2 {[%clk 0:03:07.3]} 13... h5 {[%clk 0:02:50.5]} 14. b4
{[%clk 0:03:07.6]} 14... Rfd8 {[%clk 0:02:38.9]} 15. c5 {[%clk 0:03:08.4]} 15...
dxc5 {[%clk 0:02:37.8]} 16. bxc5 {[%clk 0:03:10.3]} 16... Nxc5 {[%clk
0:02:37.5]} 17. Qb1 {[%clk 0:03:05.7]} 17... Nd3 {[%clk 0:02:26.8]} 18. Bxd3
{[%clk 0:03:03.7]} 18... exd3 {[%clk 0:02:27.6]} 19. Qxd3 {[%clk 0:03:05.1]}
19... c5 {[%clk 0:02:28.6]} 20. d5 {[%clk 0:03:00.6]} 20... c4 {[%clk
0:02:29.5]} 21. Qxc4 {[%clk 0:02:57.4]} 21... Rac8 {[%clk 0:02:30.4]} 22. d6
{[%clk 0:02:22.3]} 22... Rxc4 {[%clk 0:02:15.1]} 23. dxe7 {[%clk 0:02:22.2]}
23... Re8 {[%clk 0:02:16.4]} 24. Rac1 {[%clk 0:02:11.2]} 24... Rc6 {[%clk
0:01:51.4]} 25. Nb5 {[%clk 0:02:05.4]} 25... Rxe7 {[%clk 0:01:44.8]} 26. Nxa7
{[%clk 0:01:59.7]} 26... Ra6 {[%clk 0:01:43.9]} 27. Nc8 {[%clk 0:01:57.3]} 27...
Rd7 {[%clk 0:01:41.1]} 28. Rc2 {[%clk 0:01:49.7]} 28... Ne4 {[%clk 0:01:41.6]}
29. Rec1 {[%clk 0:01:38.8]} 29... Kh7 {[%clk 0:01:34.8]} 30. f3 {[%clk
0:01:37.1]} 30... Nc3 {[%clk 0:01:24.8]} 31. Rxc3 {[%clk 0:01:22.1]} 31... Bxc3
{[%clk 0:01:25.2]} 32. Rxc3 {[%clk 0:01:24]} 32... Rd1+ {[%clk 0:01:25.4]} 33.
Kf2 {[%clk 0:01:16.4]} 33... Rxa2+ {[%clk 0:01:27.3]} 34. Kg3 {[%clk 0:01:09.3]}
34... Rdd2 {[%clk 0:01:27.9]} 35. Kh4 {[%clk 0:00:58.3]} 35... Rxg2 {[%clk
0:01:27.1]} 36. Bf4 {[%clk 0:00:57.7]} 36... Rac2 {[%clk 0:01:18.3]} 37. Rxc2
{[%clk 0:00:54.6]} 37... Rxc2 {[%clk 0:01:19]} 38. Nd6 {[%clk 0:00:56.5]} 38...
f6 {[%clk 0:01:17.9]} 39. Nxb7 {[%clk 0:00:30.9]} 39... Rg2 {[%clk 0:01:09.4]}
40. Nd6 {[%clk 0:00:25.1]} 40... g5+ {[%clk 0:01:08.5]} 41. Bxg5 {[%clk
0:00:26.3]} 41... Rxg5 {[%clk 0:01:07.1]} 42. Ne4 {[%clk 0:00:27.1]} 42... Rf5
{[%clk 0:01:03.7]} 43. f4 {[%clk 0:00:25.4]} 43... Kg6 {[%clk 0:01:03.4]} 44.
Ng3 {[%clk 0:00:25]} 44... Ra5 {[%clk 0:01:02.5]} 45. Nf1 {[%clk 0:00:14.3]}
45... Ra2 {[%clk 0:00:55.6]} 46. Kg3 {[%clk 0:00:14.7]} 46... Kf5 {[%clk
0:00:54.9]} 47. Kf3 {[%clk 0:00:15.6]} 47... Ra3 {[%clk 0:00:51.6]} 48. Ng3+
{[%clk 0:00:16.2]} 48... Kg6 {[%clk 0:00:52]} 49. h4 {[%clk 0:00:17.6]} 49... f5
{[%clk 0:00:50.6]} 50. Ne2 {[%clk 0:00:17.8]} 50... Ra2 {[%clk 0:00:50.7]} 51.
Nd4 {[%clk 0:00:18.3]} 51... Rh2 {[%clk 0:00:50.9]} 52. Kg3 {[%clk 0:00:19.6]}
52... Rh1 {[%clk 0:00:50.6]} 53. Nf3 {[%clk 0:00:20.5]} 53... Kf6 {[%clk
0:00:49.4]} 54. Kg2 {[%clk 0:00:21.1]} 54... Ra1 {[%clk 0:00:48.3]} 55. Nd4
{[%clk 0:00:22.3]} 55... Ra2+ {[%clk 0:00:45.9]} 56. Kf3 {[%clk 0:00:23.6]}
56... Rb2 {[%clk 0:00:44.4]} 57. Ne2 {[%clk 0:00:24.6]} 57... Ke6 {[%clk
0:00:40.9]} 58. Ng3 {[%clk 0:00:25.5]} 58... Rh2 {[%clk 0:00:39.7]} 59. Nxh5
{[%clk 0:00:25.8]} 59... Rxh4 {[%clk 0:00:40.7]} 60. Ng3 {[%clk 0:00:27.3]}
60... Rh3 {[%clk 0:00:37.5]} 61. Kg2 {[%clk 0:00:28]} 61... Rh8 {[%clk
0:00:37.7]} 62. Kf3 {[%clk 0:00:25.9]} 62... Rg8 {[%clk 0:00:36.1]} 63. Ne2
{[%clk 0:00:26.7]} 63... Ra8 {[%clk 0:00:33.9]} 64. Nd4+ {[%clk 0:00:27.3]}
64... Kf6 {[%clk 0:00:33]} 65. Ne2 {[%clk 0:00:27.3]} 65... Ra3 {[%clk
0:00:32.6]} 66. Kf2 {[%clk 0:00:28]} 66... Ra2 {[%clk 0:00:32]} 67. Kf3 {[%clk
0:00:29]} 67... Ra3 {[%clk 0:00:33.2]} 68. Ng3 {[%clk 0:00:29.8]} 68... Ra2
{[%clk 0:00:33.5]} 69. Nf1 {[%clk 0:00:30.3]} 69... Rb2 {[%clk 0:00:32.2]} 70.
e4 {[%clk 0:00:27.4]} 70... fxe4+ {[%clk 0:00:29.4]} 71. Kxe4 {[%clk 0:00:28.1]}
71... Rf2 {[%clk 0:00:26.8]} 72. Ne3 {[%clk 0:00:28.7]} 72... Rxf4+ {[%clk
0:00:27.7]} 73. Kxf4 {[%clk 0:00:27]} 1/2-1/2

[Event "*** Titled Tuesday Blitz"]
[Site "Chess.com"]
[Date "2018.04.03"]
[Round "1"]
[White "eldur16"]
[Black "SanQui14"]
[Result "1/2-1/2"]
[WhiteElo "2523"]
[BlackElo "2205"]
[TimeControl "180+2"]
[EndTime "13:10:36 PDT"]
[Termination "Game drawn by repetition"]

1. e4 {[%clk 0:03:00.9]} 1... c5 {[%clk 0:02:59.1]} 2. Ne2 {[%clk 0:03:00.6]}
2... g6 {[%clk 0:03:00]} 3. g3 {[%clk 0:03:00.2]} 3... Bg7 {[%clk 0:03:00.9]} 4.
Bg2 {[%clk 0:03:00.5]} 4... Nc6 {[%clk 0:03:02.3]} 5. O-O {[%clk 0:03:00.2]}
5... d6 {[%clk 0:03:03]} 6. c3 {[%clk 0:03:00]} 6... Nf6 {[%clk 0:03:04.2]} 7.
d4 {[%clk 0:02:59.5]} 7... cxd4 {[%clk 0:03:05.3]} 8. cxd4 {[%clk 0:02:59.7]}
8... O-O {[%clk 0:03:07]} 9. Nbc3 {[%clk 0:02:59.2]} 9... Bd7 {[%clk 0:03:06.4]}
10. h3 {[%clk 0:02:58.9]} 10... Qa5 {[%clk 0:03:06.6]} 11. Be3 {[%clk
0:02:58.2]} 11... b5 {[%clk 0:03:02.7]} 12. Qd2 {[%clk 0:02:52.9]} 12... b4
{[%clk 0:02:59.9]} 13. Nd5 {[%clk 0:02:50.8]} 13... Rfc8 {[%clk 0:02:46.8]} 14.
a3 {[%clk 0:02:35.1]} 14... Nxd5 {[%clk 0:02:21.2]} 15. exd5 {[%clk 0:02:35.3]}
15... Nd8 {[%clk 0:02:21.7]} 16. axb4 {[%clk 0:02:33.3]} 16... Qb6 {[%clk
0:02:22.2]} 17. Rfe1 {[%clk 0:02:18.6]} 17... Rab8 {[%clk 0:02:21.3]} 18. Bg5
{[%clk 0:02:06.1]} 18... e5 {[%clk 0:02:10.6]} 19. dxe6 {[%clk 0:01:59]} 19...
Nxe6 {[%clk 0:02:10.4]} 20. Be3 {[%clk 0:01:58.2]} 20... Qxb4 {[%clk 0:01:57.6]}
21. Qxb4 {[%clk 0:01:53.6]} 21... Rxb4 {[%clk 0:01:59.5]} 22. Rxa7 {[%clk
0:01:53.5]} 22... Bb5 {[%clk 0:01:55.7]} 23. Nc3 {[%clk 0:01:36.3]} 23... Rxb2
{[%clk 0:01:32.4]} 24. Nd5 {[%clk 0:01:31.6]} 24... Re8 {[%clk 0:00:53.7]} 25.
Rc1 {[%clk 0:00:25.3]} 25... Nxd4 {[%clk 0:00:49.6]} 26. Rcc7 {[%clk 0:00:21.5]}
26... Nf5 {[%clk 0:00:30]} 27. Rxf7 {[%clk 0:00:20.3]} 27... Rb1+ {[%clk
0:00:25.3]} 28. Kh2 {[%clk 0:00:20.4]} 28... Bc4 {[%clk 0:00:14.5]} 29. Rxg7+
{[%clk 0:00:19.1]} 29... Nxg7 {[%clk 0:00:15.2]} 30. Nf6+ {[%clk 0:00:19.9]}
30... Kf8 {[%clk 0:00:16]} 31. Bh6 {[%clk 0:00:19.6]} 31... Re7 {[%clk
0:00:11.6]} 32. Rxe7 {[%clk 0:00:18.1]} 32... Kxe7 {[%clk 0:00:12.6]} 33. Bxg7
{[%clk 0:00:18.8]} 33... Re1 {[%clk 0:00:09.1]} 34. Nxh7 {[%clk 0:00:18.3]}
34... Kf7 {[%clk 0:00:09.8]} 35. Bd4 {[%clk 0:00:18.5]} 35... Bd3 {[%clk
0:00:05.6]} 36. Ng5+ {[%clk 0:00:19.1]} 36... Kg8 {[%clk 0:00:06.6]} 37. h4
{[%clk 0:00:20]} 37... Bf5 {[%clk 0:00:07.2]} 38. Bd5+ {[%clk 0:00:20.2]} 38...
Kf8 {[%clk 0:00:08.1]} 39. Kg2 {[%clk 0:00:20.2]} 39... Rd1 {[%clk 0:00:09.4]}
40. Nf3 {[%clk 0:00:20.2]} 40... Bg4 {[%clk 0:00:09.3]} 41. Bc6 {[%clk
0:00:13.3]} 41... Bxf3+ {[%clk 0:00:09.1]} 42. Kxf3 {[%clk 0:00:14.2]} 42...
Rxd4 {[%clk 0:00:10.7]} 43. Ke3 {[%clk 0:00:15.2]} 43... Rb4 {[%clk 0:00:11.4]}
44. Be4 {[%clk 0:00:15.9]} 44... Kg7 {[%clk 0:00:12.2]} 45. f4 {[%clk
0:00:15.7]} 45... Rb3+ {[%clk 0:00:13]} 46. Kf2 {[%clk 0:00:16.1]} 46... Kf6
{[%clk 0:00:14.2]} 47. g4 {[%clk 0:00:16.9]} 47... Rb4 {[%clk 0:00:15.3]} 48.
Ke3 {[%clk 0:00:17.3]} 48... Rb3+ {[%clk 0:00:16.5]} 49. Kd4 {[%clk 0:00:17.7]}
49... Rh3 {[%clk 0:00:15.1]} 50. g5+ {[%clk 0:00:18]} 50... Kf7 {[%clk 0:00:13]}
51. f5 {[%clk 0:00:19]} 51... gxf5 {[%clk 0:00:11.1]} 52. Bxf5 {[%clk
0:00:20.1]} 52... Rxh4+ {[%clk 0:00:12.3]} 53. Kd5 {[%clk 0:00:21.2]} 53... Ke7
{[%clk 0:00:12.1]} 54. g6 {[%clk 0:00:22.2]} 54... Rh1 {[%clk 0:00:13.1]} 55.
Bc2 {[%clk 0:00:20.9]} 55... Rg1 {[%clk 0:00:12.9]} 56. Be4 {[%clk 0:00:20.9]}
56... Rg5+ {[%clk 0:00:13.9]} 57. Kd4 {[%clk 0:00:21.6]} 57... Ke6 {[%clk
0:00:14.7]} 58. Bc2 {[%clk 0:00:21.6]} 58... Rg4+ {[%clk 0:00:15.5]} 59. Ke3
{[%clk 0:00:21.9]} 59... Ke5 {[%clk 0:00:16.4]} 60. Kf3 {[%clk 0:00:22.3]} 60...
Rg5 {[%clk 0:00:16.9]} 61. Ke3 {[%clk 0:00:22.5]} 61... d5 {[%clk 0:00:18]} 62.
Bb1 {[%clk 0:00:22.9]} 62... Rg3+ {[%clk 0:00:17.8]} 63. Kf2 {[%clk 0:00:23.5]}
63... Rb3 {[%clk 0:00:16.6]} 64. g7 {[%clk 0:00:23.4]} 64... Rb2+ {[%clk
0:00:15.8]} 65. Kf3 {[%clk 0:00:22.9]} 65... Rb3+ {[%clk 0:00:16.4]} 66. Kf2
{[%clk 0:00:23.6]} 66... Rb2+ {[%clk 0:00:17.1]} 67. Kf3 {[%clk 0:00:24.4]}
67... Rb3+ {[%clk 0:00:16.8]} 68. Kf2 {[%clk 0:00:25.4]} 68... Rb2+ {[%clk
0:00:11.2]} 69. Kf3 {[%clk 0:00:26.2]} 69... Rb3+ {[%clk 0:00:05]} 70. Kf2
{[%clk 0:00:26.9]} 70... Rb2+ {[%clk 0:00:06]} 1/2-1/2

[Event "*** Titled Tuesday Blitz"]
[Site "Chess.com"]
[Date "2018.04.03"]
[Round "1"]
[White "Slovak_fighter2000"]
[Black "TigranLPetrosyan"]
[Result "0-1"]
[WhiteElo "2337"]
[BlackElo "2657"]
[TimeControl "180+2"]
[EndTime "13:10:42 PDT"]
[Termination "TigranLPetrosyan won by resignation"]

1. d4 {[%clk 0:03:01.9]} 1... d6 {[%clk 0:03:00.4]} 2. Nf3 {[%clk 0:03:03.2]}
2... Bg4 {[%clk 0:02:59.5]} 3. Bf4 {[%clk 0:03:03.2]} 3... Bxf3 {[%clk
0:02:59.8]} 4. exf3 {[%clk 0:03:04.4]} 4... g6 {[%clk 0:03:01.3]} 5. c3 {[%clk
0:03:04.6]} 5... Bg7 {[%clk 0:03:02.7]} 6. Nd2 {[%clk 0:03:05.3]} 6... Nf6
{[%clk 0:03:02.2]} 7. Bd3 {[%clk 0:03:03]} 7... O-O {[%clk 0:03:03.5]} 8. O-O
{[%clk 0:03:03.3]} 8... c6 {[%clk 0:03:02.9]} 9. h3 {[%clk 0:03:03.3]} 9... Nbd7
{[%clk 0:03:03.8]} 10. Bh2 {[%clk 0:03:03.3]} 10... d5 {[%clk 0:03:02.5]} 11. f4
{[%clk 0:03:03.4]} 11... e6 {[%clk 0:02:41.5]} 12. Nf3 {[%clk 0:03:02.6]} 12...
b5 {[%clk 0:02:35.6]} 13. a4 {[%clk 0:03:00.7]} 13... a6 {[%clk 0:02:35.3]} 14.
axb5 {[%clk 0:03:01.3]} 14... axb5 {[%clk 0:02:35.6]} 15. Ne5 {[%clk 0:02:58.6]}
15... Qb6 {[%clk 0:02:33.7]} 16. Qe2 {[%clk 0:02:54.6]} 16... b4 {[%clk
0:02:28.7]} 17. Rfb1 {[%clk 0:02:37]} 17... Nxe5 {[%clk 0:02:27.3]} 18. fxe5
{[%clk 0:02:37.3]} 18... Nd7 {[%clk 0:02:28.8]} 19. Bf4 {[%clk 0:02:32.3]} 19...
Rfb8 {[%clk 0:02:28.7]} 20. Bd2 {[%clk 0:02:25.3]} 20... c5 {[%clk 0:02:22.3]}
21. dxc5 {[%clk 0:02:18]} 21... Nxc5 {[%clk 0:02:20.7]} 22. Rxa8 {[%clk
0:02:11.9]} 22... Rxa8 {[%clk 0:02:20.6]} 23. Be3 {[%clk 0:01:53.8]} 23... Qc7
{[%clk 0:02:05.7]} 24. Bd4 {[%clk 0:01:49.5]} 24... Nxd3 {[%clk 0:02:03.7]} 25.
Qxd3 {[%clk 0:01:51.4]} 25... Bxe5 {[%clk 0:02:01.3]} 26. Bxe5 {[%clk
0:01:40.2]} 26... Qxe5 {[%clk 0:02:03.2]} 27. cxb4 {[%clk 0:01:41.5]} 27... Rb8
{[%clk 0:01:56.9]} 28. Qc3 {[%clk 0:01:40.3]} 28... Qe4 {[%clk 0:01:55.1]} 29.
Ra1 {[%clk 0:01:28.1]} 29... d4 {[%clk 0:01:14.8]} 30. Qc4 {[%clk 0:01:24.1]}
30... Qd5 {[%clk 0:01:04.6]} 31. Qxd5 {[%clk 0:00:55.9]} 31... exd5 {[%clk
0:01:06.5]} 32. Ra5 {[%clk 0:00:57]} 32... Rxb4 {[%clk 0:00:54.4]} 33. Rxd5
{[%clk 0:00:54.2]} 33... Kf8 {[%clk 0:00:54.9]} 34. g3 {[%clk 0:00:47.1]} 34...
Ke7 {[%clk 0:00:55.6]} 35. Kg2 {[%clk 0:00:43.3]} 35... Ke6 {[%clk 0:00:56.6]}
36. Rd8 {[%clk 0:00:44.2]} 36... Ke7 {[%clk 0:00:57.9]} 37. Rd5 {[%clk
0:00:44.7]} 37... Ke6 {[%clk 0:00:59.5]} 38. Rd8 {[%clk 0:00:45.4]} 38... h5
{[%clk 0:00:50.7]} 39. h4 {[%clk 0:00:45.9]} 39... Ke5 {[%clk 0:00:50.4]} 40.
Re8+ {[%clk 0:00:42.5]} 40... Kf5 {[%clk 0:00:40.7]} 41. Rd8 {[%clk 0:00:41.5]}
41... Ke4 {[%clk 0:00:40]} 42. Re8+ {[%clk 0:00:41.3]} 42... Kd3 {[%clk
0:00:38.7]} 43. Re7 {[%clk 0:00:38]} 43... Kc2 {[%clk 0:00:25.2]} 44. Rxf7
{[%clk 0:00:35.3]} 44... d3 {[%clk 0:00:26.3]} 45. Rc7+ {[%clk 0:00:28.9]} 45...
Kxb2 {[%clk 0:00:25.9]} 46. Kf3 {[%clk 0:00:27.9]} 46... Rd4 {[%clk 0:00:27.4]}
47. Rb7+ {[%clk 0:00:25.1]} 47... Kc3 {[%clk 0:00:27.7]} 48. Rc7+ {[%clk
0:00:25.3]} 48... Kb2 {[%clk 0:00:22.8]} 49. Rb7+ {[%clk 0:00:26]} 49... Kc2
{[%clk 0:00:24.2]} 50. Rc7+ {[%clk 0:00:26.8]} 50... Kd1 {[%clk 0:00:20.9]} 51.
Ke3 {[%clk 0:00:24]} 51... d2 {[%clk 0:00:12.1]} 52. Kxd4 {[%clk 0:00:18.7]}
52... Ke1 {[%clk 0:00:12.1]} 53. Re7+ {[%clk 0:00:16.7]} 53... Kf1 {[%clk
0:00:12.6]} 54. Ke3 {[%clk 0:00:07.4]} 54... d1=Q {[%clk 0:00:13.5]} 55. Rf7
{[%clk 0:00:08.7]} 55... Qc1+ {[%clk 0:00:10.7]} 56. Kd4 {[%clk 0:00:06.4]}
56... Qb2+ {[%clk 0:00:09.9]} 57. Ke4 {[%clk 0:00:04.3]} 57... Qc2+ {[%clk
0:00:10.6]} 58. Ke5 {[%clk 0:00:04.3]} 58... Qc5+ {[%clk 0:00:10.4]} 59. Ke6
{[%clk 0:00:03.2]} 59... Qc4+ {[%clk 0:00:10.5]} 60. Kf6 {[%clk 0:00:04.5]}
60... Kxf2 {[%clk 0:00:10.5]} 61. Kxg6+ {[%clk 0:00:05.7]} 61... Kxg3 {[%clk
0:00:12.4]} 62. Rf5 {[%clk 0:00:04.1]} 62... Qg8+ {[%clk 0:00:11.3]} 63. Kf6
{[%clk 0:00:05]} 63... Kxh4 {[%clk 0:00:10.8]} 64. Rf4+ {[%clk 0:00:05.1]} 64...
Kg3 {[%clk 0:00:12.1]} 65. Rf5 {[%clk 0:00:04.6]} 65... Qf8+ {[%clk 0:00:12.7]}
66. Kg5 {[%clk 0:00:05.3]} 66... Qxf5+ {[%clk 0:00:14.6]} 0-1